[Event "41st Jacques-Lemans-Open 2022"]
[Site "St. Veit/Glan"]
[Date "2022.07.10"]
[Round "3.11"]
[White "Sandhoefner, Florian"]
[Black "Lipp, Alfred"]
[Result "1-0"]
[ECO "D35"]
[WhiteElo "2289"]
[BlackElo "2011"]
[Annotator "RC"]
[PlyCount "59"]
[EventDate "2022.07.09"]
[EventType "swiss"]
[EventCountry "AUT"]
[SourceTitle "playchess.com"]
[Source "ChessBase"]
[SourceQuality "1"]
[TimeControl "40/5400+30:1800+30"]

1. d4 {[%emt 0:00:30]} d5 {[%emt 0:00:10]} 2. c4 {[%emt 0:00:08]} e6 {[%emt 0:00:06]} 3. Nc3 {[%emt 0:00:04]} Nf6 {[%emt 0:00:12]} 4. cxd5 {[%emt 0:00:05]} exd5 {[%emt 0:00:09]} 5. Bg5 {[%emt 0:00:06]} Be7 {[%emt 0:00:27]} 6. e3 {[%emt 0:00:07]} O-O {[%emt 0:00:17]} 7. Qc2 {[%emt 0:00:09]} Nbd7 {[%emt 0:01:12]} 8. Bd3 {[%emt 0:00:10]} Re8 {[%emt 0:02:14]} 9. Nf3 {[%emt 0:00:45]} Nf8 {[%emt 0:02:11]} 10. O-O {[%emt 0:00:22]} c6 {[%emt 0:02:00]} 11. Rab1 {[%emt 0:00:08]} h6 {[%emt 0:06:53]} 12. Bh4 {[%emt 0:00:53]} Ne4 {[%emt 0:00:34]} 13. Bxe7 {[%emt 0:00:22]} Qxe7 {[%emt 0:00:09]} 14. b4 {[%emt 0:00:14]} Bf5 {[%emt 0:05:34]} 15. b5 {[%emt 0:01:55]} Ng6 {[%emt 0:11:47]} 16. bxc6 {[%emt 0:02:50]} bxc6 {[%emt 0:00:06]} 17. Rfc1 {[%emt 0:01:30]} Rad8 {[%emt 0:10:45]} 18. Bxe4 {[%emt 0:02:54]} dxe4 {[%emt 0:02:57]} 19. Nd2 {[%emt 0:03:17]} Nh4 {[%emt 0:08:06]} 20. Ne2 {[%emt 0:04:33]} Qg5 {[%emt 0:04:38]} 21. Ng3 {[%emt 0:03:26]} Rxd4 {[%emt 0:00:50]} 22. exd4 {[%emt 0:01:18]} e3 {[%emt 0:00:20]} 23. Qxc6 {[%emt 0:00:16]} exf2+ {[%emt 0:01:10]} 24. Kh1 {[%emt 0:02:56]} Re1+ {[%emt 0:02:44]} 25. Rxe1 {[%emt 0:00:10]} fxe1=Q+ 26. Rxe1 Qxd2 {[%emt 0:01:32]} 27. Qe8+ {[%emt 0:02:02]} Kh7 {[%emt 0:00:10]} 28. Qe2 {[%emt 0:00:14]} Qxd4 {[%emt 0:00:46]} 29. Nxf5 {[%emt 0:01:19]} Nxf5 {[%emt 0:00:07]} 30. Qe4 {[%emt 0:00:13]} 1-0

[Event "41st Jacques-Lemans-Open 2022"]
[Site "St. Veit/Glan"]
[Date "2022.07.10"]
[Round "3.12"]
[White "Kozomara, David"]
[Black "Caruso, Augusto"]
[Result "1/2-1/2"]
[ECO "C01"]
[WhiteElo "2016"]
[BlackElo "2132"]
[Annotator "RC"]
[PlyCount "101"]
[EventDate "2022.07.09"]
[EventType "swiss"]
[EventCountry "AUT"]
[SourceTitle "playchess.com"]
[Source "ChessBase"]
[SourceQuality "1"]
[TimeControl "40/5400+30:1800+30"]

1. e4 {[%emt 0:00:08]} e6 {[%emt 0:00:25]} 2. d4 {[%emt 0:03:33]} d5 {[%emt 0:00:05]} 3. exd5 {[%emt 0:00:33]} exd5 {[%emt 0:00:03]} 4. Bd3 {[%emt 0:00:35]} Bd6 {[%emt 0:00:10]} 5. c3 {[%emt 0:01:34]} Ne7 {[%emt 0:00:34]} 6. Ne2 {[%emt 0:00:07]} Bf5 {[%emt 0:00:53]} 7. Bg5 {[%emt 0:00:58]} Qd7 {[%emt 0:00:48]} 8. O-O {[%emt 0:02:40]} Ng6 {[%emt 0:02:29]} 9. Ng3 {[%emt 0:02:30]} Bxd3 {[%emt 0:02:40]} 10. Qxd3 {[%emt 0:00:10]} O-O {[%emt 0:00:05]} 11. Nf5 {[%emt 0:07:37]} Bf4 {[%emt 0:03:10]} 12. Ne7+ {[%emt 0:06:10]} Nxe7 {[%emt 0:00:58]} 13. Bxf4 {[%emt 0:00:07]} Ng6 {[%emt 0:04:16]} 14. Bg3 {[%emt 0:02:19]} f5 {[%emt 0:01:32]} 15. Be5 {[%emt 0:00:56]} f4 {[%emt 0:08:23]} 16. Nd2 {[%emt 0:00:23]} Nc6 {[%emt 0:01:28]} 17. Nf3 {[%emt 0:00:59]} Rae8 {[%emt 0:04:23]} 18. Rfe1 {[%emt 0:01:27]} Re7 {[%emt 0:06:21]} 19. Re2 {[%emt 0:01:03]} Nd8 {[%emt 0:12:01]} 20. Rae1 {[%emt 0:04:19]} Nf7 {[%emt 0:02:20]} 21. c4 {[%emt 0:05:16]} c6 {[%emt 0:04:13]} 22. c5 {[%emt 0:06:47]} Rfe8 {[%emt 0:06:08]} 23. b4 {[%emt 0:01:20]} b5 {[%emt 0:06:33]} 24. a3 {[%emt 0:01:13]} Ra8 {[%emt 0:02:23]} 25. Qc2 {[%emt 0:09:47]} a5 {[%emt 0:09:37]} 26. h3 {[%emt 0:07:40]} axb4 {[%emt 0:00:34]} 27. axb4 {[%emt 0:00:07]} Ra4 {[%emt 0:00:31]} 28. Bxf4 {[%emt 0:01:23]} Rxe2 {[%emt 0:10:07]} 29. Qxe2 {[%emt 0:00:14]} Ra8 {[%emt 0:02:49]} 30. Bg3 {[%emt 0:00:50]} Rc8 {[%emt 0:02:51]} 31. Ne5 {[%emt 0:11:18]} Nfxe5 {[%emt 0:02:32]} 32. Bxe5 {[%emt 0:00:23]} Re8 {[%emt 0:00:53]} 33. Qf3 {[%emt 0:09:55]} Nxe5 {[%emt 0:01:38]} 34. dxe5 {[%emt 0:00:32]} Qe6 {[%emt 0:01:32]} 35. Qh5 {[%emt 0:04:22]} g6 {[%emt 0:00:29]} 36. Qg5 {[%emt 0:01:00]} Kg7 {[%emt 0:01:03]} 37. f4 {[%emt 0:01:17]} h6 {[%emt 0:00:46]} 38. Qf6+ {[%emt 0:01:03]} Qxf6 {[%emt 0:00:01]} 39. exf6+ {[%emt 0:00:12]} Kf7 {[%emt 0:00:00]} 40. Re5 {[%emt 0:01:34]} Ra8 {[%emt 0:00:44]} 41. f5 {[%emt 0:32:17]} gxf5 {[%emt 0:05:58]} 42. Rxf5 {[%emt 0:00:00]} Kg6 {[%emt 0:10:35]} 43. Rf3 {[%emt 0:00:00]} Rf8 {[%emt 0:00:04]} 44. f7 {[%emt 0:00:00]} Rxf7 {[%emt 0:00:21]} 45. Rg3+ {[%emt 0:00:00]} Kf6 {[%emt 0:03:51]} 46. Kf2 {[%emt 0:00:00]} Ke5+ {[%emt 0:02:42]} 47. Ke2 {[%emt 0:00:00]} Rf6 {[%emt 0:01:47]} 48. Rg4 {[%emt 0:00:00]} Re6 {[%emt 0:02:10]} 49. Kf3 {[%emt 0:00:00]} Rf6+ {[%emt 0:00:29]} 50. Ke2 {[%emt 0:00:00]} Re6 {[%emt 0:00:24]} 51. Kf3 {[%emt 0:00:00]} 1/2-1/2

[Event "41st Jacques-Lemans-Open 2022"]
[Site "St. Veit/Glan"]
[Date "2022.07.10"]
[Round "3.13"]
[White "Hechl, Gerald"]
[Black "Guetz, Wolfgang"]
[Result "1/2-1/2"]
[ECO "A20"]
[WhiteElo "2222"]
[BlackElo "2034"]
[Annotator "RC"]
[PlyCount "119"]
[EventDate "2022.07.09"]
[EventType "swiss"]
[EventCountry "AUT"]
[SourceTitle "playchess.com"]
[Source "ChessBase"]
[SourceQuality "1"]
[TimeControl "40/5400+30:1800+30"]

1. c4 {[%emt 0:00:02]} e5 {[%emt 0:00:05]} 2. e3 {[%emt 0:00:05]} Nf6 {[%emt 0:00:32]} 3. Nc3 {[%emt 0:00:05]} d5 {[%emt 0:04:16]} 4. cxd5 {[%emt 0:00:05]} Nxd5 {[%emt 0:00:07]} 5. Qh5 {[%emt 0:00:02]} Nb4 {[%emt 0:22:14]} 6. Qxe5+ {[%emt 0:05:52]} Be7 {[%emt 0:05:07]} 7. Qe4 {[%emt 0:00:57]} Nd7 {[%emt 0:07:32]} 8. a3 {[%emt 0:04:26]} Nc5 {[%emt 0:02:55]} 9. Qb1 {[%emt 0:01:50]} Nbd3+ {[%emt 0:00:50]} 10. Bxd3 {[%emt 0:00:10]} Nxd3+ {[%emt 0:00:05]} 11. Ke2 {[%emt 0:04:13]} Bf5 {[%emt 0:11:36]} 12. e4 {[%emt 0:00:12]} Nf4+ {[%emt 0:01:33]} 13. Kf3 {[%emt 0:09:48]} Ne6 {[%emt 0:21:32]} 14. g3 {[%emt 0:07:09]} Nd4+ {[%emt 0:02:01]} 15. Kg2 {[%emt 0:00:13]} Be6 {[%emt 0:00:32]} 16. Nge2 {[%emt 0:16:53]} Nb3 {[%emt 0:00:27]} 17. d4 {[%emt 0:00:05]} Nxa1 {[%emt 0:00:30]} 18. Qxa1 {[%emt 0:00:08]} Bc4 {[%emt 0:01:11]} 19. Be3 {[%emt 0:00:49]} Bxe2 {[%emt 0:00:36]} 20. Nxe2 {[%emt 0:00:02]} O-O {[%emt 0:00:13]} 21. Qa2 {[%emt 0:05:05]} a5 {[%emt 0:00:58]} 22. h4 {[%emt 0:01:03]} Qd7 {[%emt 0:01:08]} 23. Nf4 {[%emt 0:00:41]} Kh8 {[%emt 0:01:13]} 24. e5 {[%emt 0:08:49]} c6 {[%emt 0:00:41]} 25. Qb1 {[%emt 0:02:19]} a4 {[%emt 0:01:51]} 26. Qe4 {[%emt 0:05:13]} Ra5 {[%emt 0:01:43]} 27. Bd2 {[%emt 0:04:40]} Rb5 {[%emt 0:00:30]} 28. Bc3 {[%emt 0:00:04]} Rb3 {[%emt 0:01:06]} 29. d5 {[%emt 0:01:52]} cxd5 {[%emt 0:00:53]} 30. Nxd5 {[%emt 0:00:05]} Rd8 {[%emt 0:01:48]} 31. Nxe7 {[%emt 0:00:48]} Qxe7 {[%emt 0:00:02]} 32. Qxa4 {[%emt 0:00:07]} Rb6 {[%emt 0:05:20]} 33. Re1 {[%emt 0:07:22]} Ra6 {[%emt 0:00:34]} 34. Qe4 {[%emt 0:00:44]} Qd7 {[%emt 0:01:31]} 35. Kh2 {[%emt 0:01:53]} Ra4 {[%emt 0:00:47]} 36. Qe3 {[%emt 0:02:03]} Qf5 {[%emt 0:00:45]} 37. Re2 {[%emt 0:02:19]} Rd3 {[%emt 0:00:51]} 38. Rd2 {[%emt 0:01:10]} Rxd2 {[%emt 0:00:45]} 39. Qxd2 {[%emt 0:00:01]} h6 {[%emt 0:00:42]} 40. Kg2 {[%emt 0:04:50]} Qe4+ {[%emt 0:02:16]} 41. Kh2 {[%emt 0:33:23]} Qf3 {[%emt 0:04:03]} 42. e6 {[%emt 0:00:00]} f6 {[%emt 0:15:10]} 43. Bb4 {[%emt 0:00:00]} Ra6 {[%emt 0:02:37]} 44. e7 {[%emt 0:00:00]} Re6 {[%emt 0:01:16]} 45. Kg1 {[%emt 0:00:00]} Qe4 {[%emt 0:03:28]} 46. Qd8+ {[%emt 0:00:00]} Kh7 {[%emt 0:00:07]} 47. Qd7 {[%emt 0:00:00]} Rc6 {[%emt 0:03:08]} 48. Qd2 {[%emt 0:00:00]} Re6 {[%emt 0:00:26]} 49. Kh2 {[%emt 0:00:00]} Re5 {[%emt 0:02:48]} 50. Qd7 {[%emt 0:00:00]} Qe2 {[%emt 0:01:14]} 51. Qd4 {[%emt 0:00:00]} Re4 {[%emt 0:00:59]} 52. Qc5 {[%emt 0:00:43]} Re5 {[%emt 0:00:06]} 53. Qa7 {[%emt 0:01:43]} Qxb2 {[%emt 0:01:16]} 54. Kg2 {[%emt 0:00:01]} Qe2 {[%emt 0:00:14]} 55. Qxb7 {[%emt 0:00:14]} Qe4+ {[%emt 0:00:57]} 56. Qxe4+ {[%emt 0:00:08]} Rxe4 {[%emt 0:00:01]} 57. f3 {[%emt 0:03:41]} Re6 {[%emt 0:00:34]} 58. g4 {[%emt 0:00:13]} g6 {[%emt 0:00:45]} 59. Kg3 {[%emt 0:02:28]} Kg7 {[%emt 0:00:27]} 60. Kf4 {[%emt 0:00:54]} 1/2-1/2

[Event "41st Jacques-Lemans-Open 2022"]
[Site "St. Veit/Glan"]
[Date "2022.07.10"]
[Round "3.14"]
[White "Gschiel, Alexander"]
[Black "Hng, Mei-En Emmanuelle"]
[Result "0-1"]
[ECO "A77"]
[WhiteElo "2215"]
[BlackElo "1997"]
[Annotator "RC"]
[PlyCount "92"]
[EventDate "2022.07.09"]
[EventType "swiss"]
[EventCountry "AUT"]
[SourceTitle "playchess.com"]
[Source "ChessBase"]
[SourceQuality "1"]
[TimeControl "40/5400+30:1800+30"]

1. d4 {[%emt 0:00:05]} Nf6 {[%emt 0:00:10]} 2. c4 {[%emt 0:00:13]} e6 {[%emt 0:00:18]} 3. Nf3 {[%emt 0:00:27]} c5 {[%emt 0:00:19]} 4. d5 {[%emt 0:00:21]} exd5 {[%emt 0:00:27]} 5. cxd5 {[%emt 0:00:08]} d6 {[%emt 0:00:05]} 6. Nc3 {[%emt 0:00:15]} g6 {[%emt 0:00:25]} 7. Nd2 {[%emt 0:00:48]} Bg7 {[%emt 0:07:39]} 8. e4 {[%emt 0:00:44]} O-O {[%emt 0:02:05]} 9. Be2 {[%emt 0:00:50]} Re8 {[%emt 0:04:00]} 10. O-O {[%emt 0:01:55]} a6 {[%emt 0:06:24]} 11. a4 {[%emt 0:00:22]} a5 {[%emt 0:00:35]} 12. f4 {[%emt 0:09:58]} Nbd7 {[%emt 0:04:19]} 13. Bf3 {[%emt 0:10:14]} Nb6 {[%emt 0:04:13]} 14. Re1 {[%emt 0:04:30]} h5 {[%emt 0:11:52]} 15. h3 {[%emt 0:01:52]} c4 {[%emt 0:04:29]} 16. Nb5 {[%emt 0:09:26]} Bf8 {[%emt 0:09:36]} 17. Nf1 {[%emt 0:12:12]} Bd7 {[%emt 0:03:33]} 18. Nc3 {[%emt 0:01:47]} Rc8 {[%emt 0:14:05]} 19. Be3 {[%emt 0:07:39]} Na8 {[%emt 0:05:05]} 20. Bf2 {[%emt 0:07:49]} Nh7 {[%emt 0:03:28]} 21. Ng3 {[%emt 0:02:24]} Nc7 {[%emt 0:02:49]} 22. Bb6 {[%emt 0:01:49]} Qh4 {[%emt 0:00:30]} 23. Nge2 {[%emt 0:01:13]} Na6 {[%emt 0:03:04]} 24. Bf2 {[%emt 0:04:02]} Qd8 {[%emt 0:00:27]} 25. f5 {[%emt 0:02:12]} Bh6 {[%emt 0:04:53]} 26. Nd4 {[%emt 0:05:02]} Nc5 {[%emt 0:01:25]} 27. fxg6 {[%emt 0:00:21]} fxg6 {[%emt 0:00:10]} 28. Be3 {[%emt 0:06:45]} Bxe3+ {[%emt 0:01:55]} 29. Rxe3 {[%emt 0:00:01]} Qg5 {[%emt 0:00:19]} 30. Qe2 {[%emt 0:00:28]} Nd3 {[%emt 0:01:55]} 31. Kh1 {[%emt 0:01:23]} Nf4 {[%emt 0:01:42]} 32. Qd2 {[%emt 0:00:21]} Qe5 {[%emt 0:01:54]} 33. Nde2 {[%emt 0:01:08]} Nd3 {[%emt 0:00:34]} 34. b3 {[%emt 0:00:25]} Ng5 {[%emt 0:01:11]} 35. bxc4 {[%emt 0:01:57]} Nf2+ {[%emt 0:00:22]} 36. Kg1 {[%emt 0:00:02]} Nxf3+ {[%emt 0:00:05]} 37. Rxf3 {[%emt 0:00:22]} Nxe4 {[%emt 0:00:20]} 38. Qh6 {[%emt 0:00:39]} Bf5 {[%emt 0:01:30]} 39. Qf4 {[%emt 0:06:20]} Rxc4 {[%emt 0:00:48]} 40. Qxe5 {[%emt 0:00:54]} Rxe5 {[%emt 0:00:27]} 41. Nxe4 {[%emt 0:30:43]} Bxe4 {[%emt 0:31:00]} 42. Rf6 {[%emt 0:00:00]} Bf5 {[%emt 0:00:00]} 43. Ng3 {[%emt 0:00:00]} Rxd5 44. Nxf5 {[%emt 0:00:00]} gxf5 {[%emt 0:00:00]} 45. Re1 {[%emt 0:00:00]} Re4 {[%emt 0:00:00]} 46. Rc1 {[%emt 0:00:00]} Kg7 {[%emt 0:00:00]} 0-1

[Event "41st Jacques-Lemans-Open 2022"]
[Site "St. Veit/Glan"]
[Date "2022.07.10"]
[Round "3.15"]
[White "Ofner, Maximilian"]
[Black "Kempe, Caius Emilian"]
[Result "1-0"]
[ECO "A09"]
[WhiteElo "2194"]
[BlackElo "1877"]
[Annotator "RC"]
[PlyCount "91"]
[EventDate "2022.07.09"]
[EventType "swiss"]
[EventCountry "AUT"]
[SourceTitle "playchess.com"]
[Source "ChessBase"]
[SourceQuality "1"]
[TimeControl "40/5400+30:1800+30"]

1. Nf3 {[%emt 0:00:10]} d5 {[%emt 0:00:36]} 2. c4 {[%emt 0:00:06]} d4 {[%emt 0:01:03]} 3. e3 {[%emt 0:00:29]} c5 {[%emt 0:00:47]} 4. b4 {[%emt 0:00:52]} dxe3 {[%emt 0:05:37]} 5. fxe3 {[%emt 0:00:11]} e5 {[%emt 0:11:19]} 6. Nxe5 {[%emt 0:17:18]} Qh4+ {[%emt 0:01:26]} 7. g3 {[%emt 0:00:55]} Qe4 {[%emt 0:01:07]} 8. Nf3 {[%emt 0:03:00]} cxb4 {[%emt 0:07:47]} 9. d3 {[%emt 0:04:35]} Qg6 {[%emt 0:01:05]} 10. Bg2 {[%emt 0:02:12]} Bd6 {[%emt 0:00:26]} 11. O-O {[%emt 0:01:33]} Ne7 {[%emt 0:00:58]} 12. e4 {[%emt 0:17:09]} O-O {[%emt 0:00:13]} 13. d4 {[%emt 0:01:19]} Bg4 {[%emt 0:01:28]} 14. e5 {[%emt 0:06:21]} Bc7 {[%emt 0:00:35]} 15. Qb3 {[%emt 0:04:17]} Nbc6 {[%emt 0:02:19]} 16. Bb2 {[%emt 0:01:00]} Rad8 {[%emt 0:00:28]} 17. Nbd2 {[%emt 0:13:18]} Bb6 {[%emt 0:01:20]} 18. c5 {[%emt 0:05:20]} Bc7 {[%emt 0:00:41]} 19. Nh4 {[%emt 0:03:20]} Qe6 {[%emt 0:02:08]} 20. Qe3 {[%emt 0:00:39]} Nd5 {[%emt 0:04:19]} 21. Qe4 {[%emt 0:02:14]} Bh3 {[%emt 0:06:38]} 22. Bxh3 {[%emt 0:02:13]} Qxh3 {[%emt 0:00:02]} 23. Nc4 {[%emt 0:00:57]} Qe6 {[%emt 0:01:36]} 24. Nf5 {[%emt 0:03:09]} Nc3 {[%emt 0:11:08]} 25. Bxc3 {[%emt 0:02:32]} Qxc4 {[%emt 0:00:05]} 26. Qg4 {[%emt 0:01:57]} g6 {[%emt 0:00:36]} 27. Bb2 {[%emt 0:01:17]} Qe6 {[%emt 0:12:20]} 28. Nh6+ {[%emt 0:00:04]} Kg7 {[%emt 0:00:43]} 29. Qh4 {[%emt 0:00:26]} Nxd4 {[%emt 0:05:47]} 30. Bxd4 {[%emt 0:00:56]} Rxd4 {[%emt 0:00:02]} 31. Qxd4 {[%emt 0:01:49]} Bxe5 {[%emt 0:00:02]} 32. Qd2 {[%emt 0:01:36]} Bxa1 {[%emt 0:02:07]} 33. Rxa1 {[%emt 0:00:07]} Qe5 {[%emt 0:04:53]} 34. Rf1 {[%emt 0:01:11]} Qxc5+ {[%emt 0:00:13]} 35. Kg2 {[%emt 0:00:26]} f5 {[%emt 0:03:35]} 36. Rc1 {[%emt 0:01:19]} Qe5 {[%emt 0:00:34]} 37. Re1 {[%emt 0:01:38]} Qc5 {[%emt 0:01:01]} 38. Qg5 {[%emt 0:00:16]} Qc6+ {[%emt 0:03:13]} 39. Kh3 {[%emt 0:00:33]} Qf6 {[%emt 0:00:26]} 40. Re7+ {[%emt 0:00:38]} Kh8 {[%emt 0:00:01]} 41. Qxf6+ {[%emt 0:07:25]} Rxf6 {[%emt 0:00:00]} 42. Kh4 {[%emt 0:00:09]} g5+ {[%emt 0:03:12]} 43. Kxg5 {[%emt 0:01:00]} Rg6+ {[%emt 0:00:01]} 44. Kh5 {[%emt 0:00:50]} Rb6 {[%emt 0:00:01]} 45. Nxf5 {[%emt 0:03:05]} a5 {[%emt 0:00:09]} 46. Re8# 1-0

[Event "41st Jacques-Lemans-Open 2022"]
[Site "St. Veit/Glan"]
[Date "2022.07.10"]
[Round "3.16"]
[White "Mattenberger, Matthias"]
[Black "Mitscherling, Andreas"]
[Result "0-1"]
[ECO "E42"]
[WhiteElo "2005"]
[BlackElo "2165"]
[Annotator "RC"]
[PlyCount "68"]
[EventDate "2022.07.09"]
[EventType "swiss"]
[EventCountry "AUT"]
[SourceTitle "playchess.com"]
[Source "ChessBase"]
[SourceQuality "1"]
[TimeControl "40/5400+30:1800+30"]

1. d4 {[%emt 0:00:04]} Nf6 {[%emt 0:00:10]} 2. c4 {[%emt 0:00:08]} e6 {[%emt 0:00:05]} 3. Nc3 {[%emt 0:00:05]} Bb4 {[%emt 0:00:08]} 4. e3 {[%emt 0:00:09]} c5 {[%emt 0:00:09]} 5. Nge2 {[%emt 0:00:06]} d5 {[%emt 0:00:28]} 6. a3 {[%emt 0:01:00]} Bxc3+ {[%emt 0:00:10]} 7. Nxc3 {[%emt 0:00:05]} cxd4 {[%emt 0:01:21]} 8. exd4 {[%emt 0:00:52]} Nc6 {[%emt 0:05:38]} 9. Be3 {[%emt 0:05:26]} O-O {[%emt 0:01:17]} 10. Rc1 {[%emt 0:08:50]} b6 {[%emt 0:04:11]} 11. cxd5 {[%emt 0:00:39]} Nxd5 {[%emt 0:00:55]} 12. Bd3 {[%emt 0:04:35]} Bb7 {[%emt 0:10:27]} 13. Qh5 {[%emt 0:02:26]} f5 {[%emt 0:14:31]} 14. O-O {[%emt 0:08:27]} Nxe3 {[%emt 0:14:39]} 15. fxe3 {[%emt 0:00:50]} Ne7 {[%emt 0:06:56]} 16. Bc4 {[%emt 0:02:24]} Qd7 {[%emt 0:03:04]} 17. Qg5 {[%emt 0:04:46]} Rac8 {[%emt 0:01:32]} 18. Bb3 {[%emt 0:01:02]} Ba6 {[%emt 0:03:58]} 19. Rfd1 {[%emt 0:01:58]} Bc4 {[%emt 0:00:29]} 20. Bc2 {[%emt 0:01:07]} Nd5 {[%emt 0:03:40]} 21. e4 {[%emt 0:01:46]} Nxc3 {[%emt 0:00:20]} 22. bxc3 {[%emt 0:00:13]} fxe4 {[%emt 0:00:24]} 23. Bxe4 {[%emt 0:00:16]} Bd5 {[%emt 0:00:54]} 24. Bd3 {[%emt 0:03:07]} b5 {[%emt 0:01:16]} 25. Re1 {[%emt 0:00:37]} Rf6 {[%emt 0:03:45]} 26. Re3 {[%emt 0:01:59]} Rcf8 {[%emt 0:00:15]} 27. Rg3 {[%emt 0:01:06]} Bc4 {[%emt 0:03:48]} 28. Bxc4 {[%emt 0:01:37]} bxc4 {[%emt 0:00:01]} 29. Re3 {[%emt 0:00:55]} Qc6 {[%emt 0:04:48]} 30. Qg4 {[%emt 0:03:44]} Rg6 {[%emt 0:01:18]} 31. Qe4 {[%emt 0:01:40]} Qd6 {[%emt 0:00:12]} 32. Rce1 {[%emt 0:01:45]} Qxa3 {[%emt 0:03:41]} 33. d5 {[%emt 0:00:39]} Qb2 {[%emt 0:00:56]} 34. dxe6 {[%emt 0:01:07]} Qf2+ {[%emt 0:00:20]} 0-1

[Event "41st Jacques-Lemans-Open 2022"]
[Site "St. Veit/Glan"]
[Date "2022.07.10"]
[Round "3.17"]
[White "Erber, Siegfried"]
[Black "Koelber, Daniel"]
[Result "0-1"]
[ECO "B23"]
[WhiteElo "1967"]
[BlackElo "2176"]
[Annotator "RC"]
[PlyCount "80"]
[EventDate "2022.07.09"]
[EventType "swiss"]
[EventCountry "AUT"]
[SourceTitle "playchess.com"]
[Source "ChessBase"]
[SourceQuality "1"]
[TimeControl "40/5400+30:1800+30"]

1. e4 {[%emt 0:00:09]} c5 {[%emt 0:00:08]} 2. Nc3 {[%emt 0:00:11]} a6 {[%emt 0:00:34]} 3. f4 {[%emt 0:00:20]} b5 {[%emt 0:00:10]} 4. Nf3 {[%emt 0:00:32]} Bb7 {[%emt 0:00:06]} 5. d3 {[%emt 0:01:02]} e6 {[%emt 0:00:13]} 6. Be2 {[%emt 0:00:50]} d5 {[%emt 0:04:48]} 7. exd5 {[%emt 0:01:49]} exd5 {[%emt 0:00:06]} 8. O-O {[%emt 0:00:21]} Nf6 {[%emt 0:00:41]} 9. Ne5 {[%emt 0:02:00]} Bd6 {[%emt 0:01:46]} 10. Bf3 {[%emt 0:01:30]} O-O {[%emt 0:00:42]} 11. Qe1 {[%emt 0:01:59]} Re8 {[%emt 0:03:58]} 12. Qh4 {[%emt 0:12:16]} Nbd7 {[%emt 0:08:37]} 13. Nxd7 {[%emt 0:01:42]} Qxd7 {[%emt 0:00:11]} 14. Bd2 {[%emt 0:03:11]} d4 {[%emt 0:02:44]} 15. Ne4 {[%emt 0:07:17]} Nxe4 {[%emt 0:05:00]} 16. dxe4 {[%emt 0:00:23]} Bxe4 {[%emt 0:00:55]} 17. f5 {[%emt 0:05:28]} Bxf5 {[%emt 0:12:04]} 18. Bxa8 {[%emt 0:01:34]} Rxa8 {[%emt 0:00:03]} 19. Rac1 {[%emt 0:13:05]} Bg6 {[%emt 0:03:24]} 20. Bf4 {[%emt 0:02:26]} Bf8 {[%emt 0:01:49]} 21. Rfe1 {[%emt 0:04:13]} a5 {[%emt 0:07:57]} 22. Re2 {[%emt 0:02:56]} f6 {[%emt 0:03:23]} 23. Qg3 {[%emt 0:02:15]} Bf7 {[%emt 0:03:42]} 24. Rce1 {[%emt 0:01:46]} a4 {[%emt 0:05:03]} 25. a3 {[%emt 0:03:14]} Rc8 {[%emt 0:03:48]} 26. Rd2 {[%emt 0:08:10]} Bg6 {[%emt 0:02:41]} 27. Kh1 {[%emt 0:00:28]} Qd5 {[%emt 0:02:13]} 28. Qf3 {[%emt 0:01:30]} Qd7 {[%emt 0:02:58]} 29. Qe2 {[%emt 0:04:36]} Re8 {[%emt 0:06:57]} 30. Qf2 {[%emt 0:00:41]} Be4 {[%emt 0:01:04]} 31. c3 {[%emt 0:02:11]} d3 {[%emt 0:02:16]} 32. Be3 {[%emt 0:01:26]} Qd5 {[%emt 0:00:38]} 33. Kg1 {[%emt 0:01:43]} Rc8 {[%emt 0:02:12]} 34. Qg3 {[%emt 0:01:39]} b4 {[%emt 0:01:49]} 35. c4 {[%emt 0:01:13]} Qxc4 {[%emt 0:01:49]} 36. Rf2 {[%emt 0:00:26]} bxa3 {[%emt 0:06:22]} 37. bxa3 {[%emt 0:00:48]} Bg6 {[%emt 0:00:24]} 38. Rf4 {[%emt 0:01:11]} Qb3 {[%emt 0:01:22]} 39. Qg4 {[%emt 0:01:54]} Re8 {[%emt 0:01:02]} 40. Rxa4 {[%emt 0:01:25]} d2 {[%emt 0:01:37]} 0-1

[Event "41st Jacques-Lemans-Open 2022"]
[Site "St. Veit/Glan"]
[Date "2022.07.10"]
[Round "3.18"]
[White "Tumanyan, Gor"]
[Black "Schwab, Lukas"]
[Result "1/2-1/2"]
[ECO "C50"]
[WhiteElo "1884"]
[BlackElo "2166"]
[Annotator "RC"]
[PlyCount "70"]
[EventDate "2022.07.09"]
[EventType "swiss"]
[EventCountry "AUT"]
[SourceTitle "playchess.com"]
[Source "ChessBase"]
[SourceQuality "1"]
[TimeControl "40/5400+30:1800+30"]

1. e4 {[%emt 0:00:02]} e5 {[%emt 0:00:07]} 2. Nf3 {[%emt 0:00:04]} Nc6 {[%emt 0:00:05]} 3. Bc4 {[%emt 0:00:04]} Bc5 {[%emt 0:00:05]} 4. O-O {[%emt 0:00:04]} Nf6 {[%emt 0:00:33]} 5. d4 {[%emt 0:00:03]} Bxd4 {[%emt 0:00:21]} 6. Nxd4 {[%emt 0:00:06]} Nxd4 {[%emt 0:00:05]} 7. f4 {[%emt 0:00:03]} d6 {[%emt 0:00:29]} 8. fxe5 {[%emt 0:00:21]} dxe5 {[%emt 0:00:02]} 9. Bg5 {[%emt 0:00:07]} Qe7 {[%emt 0:00:17]} 10. Na3 {[%emt 0:00:14]} Rg8 {[%emt 0:01:56]} 11. Kh1 {[%emt 0:16:44]} Bd7 {[%emt 0:07:05]} 12. c3 {[%emt 0:02:57]} Ne6 {[%emt 0:01:38]} 13. Bxf6 {[%emt 0:04:45]} gxf6 {[%emt 0:00:55]} 14. Qf3 {[%emt 0:30:33]} Rg6 {[%emt 0:05:30]} 15. b4 {[%emt 0:07:33]} O-O-O {[%emt 0:06:14]} 16. Qe3 {[%emt 0:03:57]} Kb8 {[%emt 0:01:03]} 17. Nb5 {[%emt 0:01:49]} Bxb5 {[%emt 0:01:41]} 18. Bxb5 {[%emt 0:00:50]} Qd6 {[%emt 0:05:48]} 19. Bc4 {[%emt 0:13:30]} Qd2 {[%emt 0:04:30]} 20. Qxd2 {[%emt 0:00:34]} Rxd2 {[%emt 0:00:03]} 21. Rad1 {[%emt 0:01:50]} Rxd1 {[%emt 0:16:00]} 22. Rxd1 {[%emt 0:00:05]} Kc8 {[%emt 0:00:08]} 23. g3 {[%emt 0:02:25]} Ng5 {[%emt 0:01:31]} 24. Kg2 {[%emt 0:03:19]} c6 {[%emt 0:06:05]} 25. Bd3 {[%emt 0:02:17]} Rg8 {[%emt 0:05:06]} 26. h4 {[%emt 0:01:13]} Ne6 {[%emt 0:00:19]} 27. Bc4 {[%emt 0:01:06]} Rd8 {[%emt 0:01:23]} 28. Rf1 {[%emt 0:00:17]} Rd6 {[%emt 0:05:06]} 29. Kh2 {[%emt 0:01:57]} Ng7 {[%emt 0:11:45]} 30. Kh3 {[%emt 0:02:58]} Kd8 {[%emt 0:01:04]} 31. Bxf7 {[%emt 0:00:36]} Ke7 {[%emt 0:00:28]} 32. Bc4 {[%emt 0:01:29]} b5 {[%emt 0:00:54]} 33. Bg8 {[%emt 0:00:24]} h6 {[%emt 0:01:43]} 34. Rf3 {[%emt 0:01:00]} Rd2 {[%emt 0:01:28]} 35. Re3 {[%emt 0:01:56]} Rd1 {[%emt 0:08:38]} 1/2-1/2